fUST/lending_fUST_20240422
["ID","MTS","AMOUNT","RATE_DAILY","PERIOD"]
[323177230,1713774638714,-500.0,0.00021917,2]
[323177232,1713774638723,-500.0,0.00021917,2]
[323177234,1713774638732,-500.0,0.00021917,2]
[323177236,1713774638742,-594.65,0.00021917,2]
[323177238,1713774638751,-500.0,0.00021917,2]
[323177240,1713774638760,-500.0,0.00021917,2]
[323177242,1713774638769,-500.0,0.00021917,2]
[323177244,1713774638778,-500.0,0.00021917,2]
[323177246,1713774638788,-500.0,0.00021917,2]
[323177248,1713774638797,-500.0,0.00021917,2]
[323177250,1713774638806,-500.0,0.00021917,2]
[323177252,1713774638814,-500.0,0.00021917,2]
[323177254,1713774638823,-500.0,0.00021917,2]
[323177256,1713774638833,-500.0,0.00021917,2]
[323177258,1713774638842,-500.0,0.00021917,2]
[323177260,1713774638851,-500.0,0.00021917,2]
[323177262,1713774638860,-500.0,0.00021917,2]
[323177264,1713774638868,-500.0,0.00021917,2]
[323177266,1713774638878,-500.0,0.00021917,2]
[323177268,1713774638887,-500.0,0.00021917,2]
[323177270,1713774638896,-500.0,0.00021917,2]
[323177272,1713774638906,-636.13,0.00021917,2]
[323177274,1713774638915,-500.0,0.00021917,2]
[323177276,1713774638924,-500.0,0.00021917,2]
[323177278,1713774638934,-500.0,0.00021917,2]
[323177280,1713774638943,-500.0,0.00021917,2]
[323177282,1713774638952,-893.26,0.00021917,2]
[323177284,1713774638961,-500.0,0.00021917,2]
[323177286,1713774638970,-500.0,0.00021917,2]
[323177288,1713774638980,-1900.65,0.00021917,2]
[323177290,1713774638988,-598.72,0.00021917,2]
[323177292,1713774638997,-500.0,0.00021917,2]
[323177294,1713774639007,-500.0,0.00021917,2]
[323177295,1713774639016,-500.0,0.00021917,2]
[323177296,1713774639026,-500.0,0.00021917,2]
[323177297,1713774639036,-500.0,0.00021917,2]
[323177298,1713774639045,-500.0,0.00021917,2]
[323177299,1713774639055,-1000.14,0.00021917,2]
[323177300,1713774639065,-724.57,0.00021917,2]
[323177301,1713774639074,-500.0,0.00021917,2]
[323177302,1713774639083,-500.0,0.00021917,2]
[323177303,1713774639093,-500.0,0.00021917,2]
[323177304,1713774639102,-500.0,0.00021917,2]
[323177305,1713774639113,-500.0,0.00021917,2]
[323177306,1713774639121,-500.0,0.00021917,2]
[323177307,1713774639131,-2375.69,0.00021917,2]
[323177308,1713774639140,-296.60357415,0.00021917,2]
[323177310,1713774639149,-500.0,0.00021917,2]
[323177311,1713774639158,-720.7,0.00021917,2]
[323177313,1713774639168,-500.0,0.00021917,2]
[323177315,1713774639177,-500.0,0.00021917,2]
[323177316,1713774639187,-500.0,0.00021917,2]
[323177317,1713774639196,-545.02829371,0.00021917,2]
[323177319,1713774639206,-1724.31,0.00021917,2]
[323177321,1713774639215,-500.0,0.00021917,2]
[323177323,1713774639224,-500.0,0.00021917,2]
[323177325,1713774639233,-500.0,0.00021917,2]
[323177327,1713774639242,-500.0,0.00021917,2]
[323177329,1713774639251,-500.0,0.00021917,2]
[323177331,1713774639260,-500.0,0.00021917,2]
[323177333,1713774639269,-500.0,0.00021917,2]
[323177335,1713774639278,-500.0,0.00021917,2]
[323177337,1713774639289,-653.4,0.00021917,2]
[323177339,1713774639298,-3359.97,0.00021917,2]
[323177341,1713774639307,-500.0,0.00021917,2]
[323177343,1713774639315,-653.8,0.00021917,2]
[323177345,1713774639324,-500.0,0.00021917,2]
[323177347,1713774639334,-500.0,0.00021917,2]
[323177348,1713774639342,-500.0,0.00021917,2]
[323177350,1713774639351,-617.10962198,0.00021917,2]
[323177352,1713774639360,-500.0,0.00021917,2]
[323177354,1713774639369,-500.0,0.00021917,2]
[323177356,1713774639378,-500.0,0.00021917,2]
[323177358,1713774639388,-500.0,0.00021917,2]
[323177360,1713774639397,-738.77,0.00021917,2]
[323177362,1713774639407,-500.0,0.00021917,2]
[323177364,1713774639416,-500.0,0.00021917,2]
[323177367,1713774639425,-509.72,0.00021917,2]
[323177369,1713774639434,-500.0,0.00021917,2]
[323177371,1713774639443,-500.0,0.00021917,2]
[323177373,1713774639451,-500.0,0.00021917,2]
[323177375,1713774639460,-500.0,0.00021917,2]
[323177377,1713774639469,-514.42969821,0.00021917,2]
[323177379,1713774639478,-500.0,0.00021917,2]
[323177381,1713774639487,-3820.17,0.00021917,2]
[323177383,1713774639496,-500.0,0.00021917,2]
[323177385,1713774639505,-588.86117877,0.00021917,2]
[323177387,1713774639514,-500.0,0.00021917,2]
[323177389,1713774639523,-500.0,0.00021917,2]
[323177391,1713774639533,-500.0,0.00021917,2]
[323177393,1713774639545,-2372.76,0.00021917,2]
[323177395,1713774639559,-500.0,0.00021917,2]
[323177397,1713774639568,-500.0,0.00021917,2]
[323177399,1713774639577,-500.0,0.00021917,2]
[323177401,1713774639586,-500.0,0.00021917,2]
[323177403,1713774639596,-2528.35,0.00021917,2]
[323177405,1713774639606,-500.0,0.00021917,2]
[323177407,1713774639615,-500.0,0.00021917,2]
[323177409,1713774639625,-500.0,0.00021917,2]
[323177411,1713774639634,-500.0,0.00021917,2]
[323177413,1713774639643,-643.32,0.00021917,2]
[323177415,1713774639652,-500.0,0.00021917,2]
[323177417,1713774639661,-500.0,0.00021917,2]
[323177419,1713774639670,-500.0,0.00021917,2]
[323177421,1713774639679,-500.0,0.00021917,2]
[323177423,1713774639689,-500.0,0.00021917,2]
[323177425,1713774639697,-719.22,0.00021917,2]
[323177427,1713774639706,-500.0,0.00021917,2]
[323177429,1713774639716,-500.0,0.00021917,2]
[323177431,1713774639727,-500.0,0.00021917,2]
[323177433,1713774639736,-500.0,0.00021917,2]
[323177435,1713774639745,-427.16289908,0.00021917,2]
[323177436,1713774639753,-1185.89,0.00021917,2]
[323177438,1713774639763,-500.0,0.00021917,2]
[323177440,1713774639772,-500.0,0.00021917,2]
[323177443,1713774639781,-500.0,0.00021917,2]
[323177445,1713774639793,-500.0,0.00021917,2]
[323177447,1713774639802,-500.0,0.00021917,2]
[323177449,1713774639811,-671.74,0.00021917,2]
[323177451,1713774639820,-2568.78,0.00021917,2]
[323177453,1713774639830,-616.09003582,0.00021917,2]
[323177454,1713774639839,-500.0,0.00021917,2]
[323177456,1713774639848,-500.0,0.00021917,2]
[323177458,1713774639857,-500.0,0.00021917,2]
[323177460,1713774639865,-527.46,0.00021917,2]
[323177462,1713774639875,-500.0,0.00021917,2]
[323177464,1713774639884,-500.0,0.00021917,2]
[323177467,1713774639894,-500.0,0.00021917,2]
[323177468,1713774639903,-159.43087998,0.00022,2]
[323177471,1713774639913,-208.60654609,0.00022187,2]
[323177472,1713774639922,-155.18417527,0.00022187,2]
[323177475,1713774639931,-307.69952397,0.00022187,2]
[323177477,1713774639940,-472.16497365,0.00022189,2]
[323177479,1713774639950,-852.9511326,0.00022189,2]
[323177480,1713774639959,-500.0,0.00022191,2]
[323177482,1713774639968,-500.0,0.00022191,2]
[323177484,1713774639978,-500.0,0.00022191,2]
[323177486,1713774639987,-500.0,0.00022191,2]
[323177489,1713774639997,-549.98,0.00022191,2]
[323177490,1713774640006,-500.0,0.00022191,2]
[323177492,1713774640015,-535.67,0.00022191,2]
[323177495,1713774640025,-500.0,0.00022191,2]
[323177496,1713774640034,-500.0,0.00022191,2]
[323177499,1713774640046,-500.0,0.00022191,2]
[323177501,1713774640055,-500.0,0.00022191,2]
[323177502,1713774640065,-351.91149011,0.00022191,2]
[323177504,1713774640074,-371.90513542,0.00022191,2]
[323177506,1713774640084,-500.0,0.00022191,2]
[323177508,1713774640093,-500.0,0.00022191,2]
[323177510,1713774640103,-391.17048076,0.00022191,2]
[323177512,1713774640112,-500.0,0.00022191,2]
[323177514,1713774640121,-500.0,0.00022191,2]
[323177517,1713774640131,-1428.19,0.00022191,2]
[323177518,1713774640140,-500.0,0.00022191,2]
[323177520,1713774640150,-500.0,0.00022191,2]
[323177522,1713774640159,-500.0,0.00022191,2]
[323177524,1713774640168,-500.0,0.00022191,2]
[323177527,1713774640178,-500.0,0.00022191,2]
[323177528,1713774640186,-500.0,0.00022191,2]
[323177530,1713774640196,-35.59827946,0.00022191,2]
[323177673,1713774642996,-365.000015,0.00021917,2]
[323177996,1713774950447,10000.0,0.00025,90]
[323177997,1713774961517,10000.0,0.00025,90]
[323177998,1713774982003,10000.0,0.00025,90]
[323177999,1713774989853,10000.0,0.00025,90]
[323178000,1713775031377,3149.18,0.00025,90]
[323178001,1713775031410,4758.68,0.00025,90]
[323178018,1713775375248,202.04116194,0.0002,6]
[323178050,1713775832063,-549.48258406,0.00020437,2]
[323178051,1713775832072,-227.0,0.00020438,2]
[323178052,1713775832082,-61.17613736,0.00020439,2]
[323178072,1713775838047,-154.84515485,0.00020436,2]
[323178073,1713775838057,-177.62484515,0.00020438,2]
[323178136,1713776032335,526.63156722,0.0002,2]
[323178146,1713776754872,1772.83150552,0.000232,11]
[323178147,1713776767621,1000.0,0.0002,2]
[323178148,1713776770841,200.0,0.0002,2]
[323178149,1713776773446,385.94347715,0.0002,2]
[323178150,1713776784955,1000.0,0.0002,2]
[323178151,1713776786784,200.0,0.0002,2]
[323178152,1713776789366,398.1693174,0.0002,2]
[323178153,1713776806254,16087.28363851,0.0002,2]
[323178154,1713776806971,1000.0,0.0002,2]
[323178155,1713776820080,2789.87220346,0.0002,2]
[323178160,1713776867261,-9254.40421819,0.000267,120]
[323178190,1713777032257,-596.73090927,0.0002037,2]
[323178191,1713777032266,-549.48258406,0.0002037,2]
[323178192,1713777032276,-3109.71979977,0.00020371,2]
[323178193,1713777032288,-2358.11935378,0.00020372,2]
[323178334,1713777041355,-229.1553508,0.00020372,2]
[323178335,1713777041369,-585.2950188,0.00020404,2]
[323178336,1713777041380,-539.74228579,0.00020442,2]
[323178337,1713777041389,-11807.30889282,0.00020474,2]
[323178338,1713777041405,-11736.41633058,0.00020474,2]
[323178339,1713777041414,-270.452848,0.00020769,2]
[323178340,1713777041424,-300.0,0.00021099,2]
[323178341,1713777041434,-1269.56455534,0.000211,2]
[323178342,1713777041444,-419.39507495,0.00021813,2]
[323178343,1713777041453,-331.03879142,0.00021817,2]
[323178344,1713777041462,-331.0387914,0.00021886,2]
[323178345,1713777041471,-460.9244933,0.000219,2]
[323178346,1713777041485,-39.0755067,0.000219,2]
[323178347,1713777041494,-155.18417527,0.00021915,2]
[323178348,1713777041503,-472.16497365,0.00021915,2]
[323178349,1713777041512,-208.60654609,0.00021915,2]
[323178350,1713777041521,-566.37473546,0.00021915,2]
[323178351,1713777041530,-155.27313023,0.00021915,2]
[323178352,1713777041539,-363.0,0.00021915,2]
[323178353,1713777041549,-852.9511326,0.00021916,2]
[323178354,1713777041558,-239.52358831,0.00021916,2]
[323178355,1713777041567,-427.16289908,0.00021917,2]
[323178356,1713777041576,-500.0,0.00021917,2]
[323178357,1713777041586,-500.0,0.00021917,2]
[323178358,1713777041595,-296.60357415,0.00021917,2]
[323178359,1713777041604,-500.0,0.00021917,2]
[323178360,1713777041615,-500.0,0.00021917,2]
[323178361,1713777041625,-500.0,0.00021917,2]
[323178362,1713777041634,-503.79,0.00021917,2]
[323178363,1713777041643,-500.0,0.00021917,2]
[323178364,1713777041652,-500.0,0.00021917,2]
[323178365,1713777041662,-545.02829371,0.00021917,2]
[323178366,1713777041671,-500.0,0.00021917,2]
[323178367,1713777041680,-500.0,0.00021917,2]
[323178368,1713777041689,-500.0,0.00021917,2]
[323178369,1713777041698,-500.0,0.00021917,2]
[323178370,1713777041708,-500.0,0.00021917,2]
[323178371,1713777041716,-500.0,0.00021917,2]
[323178372,1713777041726,-500.0,0.00021917,2]
[323178373,1713777041735,-500.0,0.00021917,2]
[323178374,1713777041744,-500.0,0.00021917,2]
[323178375,1713777041753,-500.0,0.00021917,2]
[323178376,1713777041762,-500.0,0.00021917,2]
[323178377,1713777041771,-500.0,0.00021917,2]
[323178378,1713777041781,-500.0,0.00021917,2]
[323178379,1713777041790,-500.0,0.00021917,2]
[323178380,1713777041799,-616.09003582,0.00021917,2]
[323178381,1713777041947,-500.0,0.00021917,2]
[323178382,1713777041956,-500.0,0.00021917,2]
[323178383,1713777041966,-500.0,0.00021917,2]
[323178384,1713777041978,-500.0,0.00021917,2]
[323178385,1713777041988,-500.0,0.00021917,2]
[323178386,1713777041998,-500.0,0.00021917,2]
[323178387,1713777042007,-500.0,0.00021917,2]
[323178388,1713777042017,-500.0,0.00021917,2]
[323178389,1713777042026,-1068.49,0.00021917,2]
[323178390,1713777042035,-500.0,0.00021917,2]
[323178391,1713777042046,-500.0,0.00021917,2]
[323178392,1713777042056,-500.0,0.00021917,2]
[323178393,1713777042065,-500.0,0.00021917,2]
[323178394,1713777042076,-500.0,0.00021917,2]
[323178395,1713777042085,-500.0,0.00021917,2]
[323178396,1713777042095,-626.65,0.00021917,2]
[323178397,1713777042106,-625.83,0.00021917,2]
[323178398,1713777042118,-500.0,0.00021917,2]
[323178399,1713777042128,-1368.68,0.00021917,2]
[323178400,1713777042137,-500.0,0.00021917,2]
[323178401,1713777042147,-500.0,0.00021917,2]
[323178402,1713777042156,-500.0,0.00021917,2]
[323178403,1713777042167,-500.0,0.00021917,2]
[323178404,1713777042177,-500.0,0.00021917,2]
[323178405,1713777042186,-500.0,0.00021917,2]
[323178406,1713777042195,-500.0,0.00021917,2]
[323178407,1713777042204,-500.0,0.00021917,2]
[323178408,1713777042214,-500.0,0.00021917,2]
[323178409,1713777042223,-500.0,0.00021917,2]
[323178410,1713777042233,-300.05130895,0.00021917,2]
[323178411,1713777042243,-500.0,0.00021917,2]
[323178412,1713777042253,-500.0,0.00021917,2]
[323178413,1713777042262,-500.0,0.00021917,2]
[323178414,1713777042273,-500.0,0.00021917,2]
[323178415,1713777042283,-606.51,0.00021917,2]
[323178416,1713777042299,-500.0,0.00021917,2]
[323178417,1713777042308,-3.97028508,0.00021917,2]
[323178418,1713777042333,-13.66372662,0.00021917,2]
[323178754,1713777061600,-10000.0,0.000267,120]
[323178755,1713777072933,-10000.0,0.000267,120]
[323178757,1713777085600,-10000.0,0.000267,120]
[323178758,1713777104424,-10000.0,0.000267,120]
[323178760,1713777125410,-10000.0,0.000267,120]
[323178762,1713777144131,-1125.92980278,0.000267,120]
[323178763,1713777213593,-1869.39746924,0.00020745,7]
[323178764,1713777213617,-1261.20506152,0.00020745,7]
[323178767,1713777228312,166.949159,0.00020049,2]
[323178797,1713777305039,1000.0,0.00020049,2]
[323178798,1713777319039,1000.0,0.00020049,2]
[323178799,1713777337039,1000.0,0.00020049,2]
[323178800,1713777355046,1000.0,0.00020049,2]
[323178801,1713777375040,1000.0,0.00020049,2]
[323178803,1713777395050,1000.0,0.00020049,2]
[323178804,1713777415054,1000.0,0.00020049,2]
[323178805,1713777428113,2728.65239884,0.0002,11]
[323178806,1713777435057,1000.0,0.00020049,2]
[323178808,1713777452734,1000.0,0.00020049,2]
[323178810,1713777474692,1000.0,0.00020049,2]
[323178811,1713777490670,1000.0,0.00020049,2]
[323178812,1713777512680,1000.0,0.00020049,2]
[323178813,1713777513296,154.95351395,0.00017532,2]
[323178815,1713777523493,1485.37151468,0.000232,11]
[323178818,1713777530683,1000.0,0.00020049,2]
[323178826,1713777547593,1000.0,0.00020049,2]
[323178829,1713777566695,1000.0,0.00020049,2]
[323178832,1713777586686,1000.0,0.00020049,2]
[323178833,1713777607529,1000.0,0.00020049,2]
[323178834,1713777628691,1000.0,0.00020049,2]
[323178835,1713777650696,1000.0,0.00020049,2]
[323178836,1713777670703,1000.0,0.00020049,2]
[323178837,1713777674759,2862.35533021,0.00020049,10]
[323178838,1713777688704,1000.0,0.00020049,2]
[323178843,1713777703970,327.874634,0.00019962,2]
[323178846,1713777708701,1000.0,0.00020049,2]
[323178849,1713777725079,168.746178,0.0001957,2]
[323178850,1713777728706,1000.0,0.00020049,2]
[323178852,1713777741549,5860.57130097,0.00020049,2]
[323178854,1713777746707,1000.0,0.00020049,2]
[323178855,1713777757460,1145.05553959,0.00020049,2]
[323178856,1713777757512,1832.2953117,0.00019899,2]
[323178857,1713777762707,1000.0,0.00020049,2]
[323178859,1713777780721,1000.0,0.00020049,2]
[323178869,1713777798715,1000.0,0.00020049,2]
[323178870,1713777805297,155.25507585,0.00016211,2]
[323178871,1713777815154,156.20764628,0.00020049,2]
[323178872,1713777816319,155.2768175,0.00020049,2]
[323178873,1713777820711,1000.0,0.00020049,2]
[323178874,1713777825419,250.0,0.00019653,2]
[323178875,1713777832280,156.14308152,0.00020049,2]
[323178876,1713777840710,1000.0,0.00020049,2]
[323178877,1713777847590,154.86062544,0.00019653,2]
[323178878,1713777848798,154.87609912,0.00019653,2]
[323178882,1713777862726,1000.0,0.0002,2]
[323178883,1713777863196,154.86062544,0.00019653,2]
[323178886,1713777881032,154.86062544,0.00019653,2]
[323178887,1713777882718,1000.0,0.0002,2]
[323178888,1713777886627,16087.28363851,0.00019653,2]
[323178889,1713777897047,162.78857378,0.0002,2]
[323178890,1713777902592,16087.28363851,0.0002,2]
[323178891,1713777902725,1000.0,0.0002,2]
[323178892,1713777918726,1000.0,0.0002,2]
[323178893,1713777924588,10772.43482403,0.0002,2]
[323178894,1713777924855,391.83802895,0.00020127,2]
[323178896,1713777932570,6444.29714703,0.00020119,2]
[323178897,1713777933400,1000.0,0.00023,11]
[323178898,1713777938793,1000.0,0.0002,2]
[323178900,1713777958727,369.44543404,0.0002,2]
[323178902,1713778000959,3130.60253076,0.00020212,7]
[323178903,1713778016896,369.39746924,0.00020264,7]
[323178904,1713778016928,6.55395804,0.00020264,7]
[323178907,1713778028593,200.0,0.0002,2]
[323178908,1713778040069,24900.0,0.00019238,2]
[323178911,1713778115288,248.70017304,0.00019238,2]
[323178912,1713778117095,307.63827702,0.00019238,2]
[323178913,1713778120611,6866.23359122,0.00019238,2]
[323178914,1713778121557,692.57331014,0.00019238,2]
[323178915,1713778131798,474.69572621,0.000202,2]
[323178917,1713778137073,308.43832005,0.000202,2]
[323178918,1713778138425,521.42032031,0.000202,2]
[323178919,1713778141037,179.83252502,0.000202,2]
[323178920,1713778141441,354.73903456,0.000202,2]
[323178921,1713778143553,692.57331014,0.00019238,2]
[323178922,1713778144822,189.15723965,0.000202,2]
[323178923,1713778147607,1550.48057045,0.000202,2]
[323178925,1713778152697,17403.17165296,0.00020108,2]
[323178926,1713778156951,154.84515485,0.0002,2]
[323178927,1713778161214,157.7311165,0.000202,2]
[323178928,1713778162173,1620.16401568,0.000202,2]
[323178929,1713778167536,630.50798573,0.00019238,2]
[323178932,1713778168735,927.5718807,0.000202,2]
[323178933,1713778169717,203.80378127,0.000202,2]
[323178934,1713778173631,193.56362685,0.000202,2]
[323178935,1713778174027,2587.27470458,0.00020199,2]
[323178936,1713778176816,223.2541547,0.0002,2]
[323178937,1713778187315,207.85032377,0.000202,2]
[323178940,1713778209173,173.19355555,0.000202,2]
[323178942,1713778211670,173.19355555,0.000202,2]
[323178944,1713778214155,173.19355555,0.000202,2]
[323178945,1713778216819,168.805312,0.00019872,2]
[323178946,1713778218648,173.19355555,0.000202,2]
[323178954,1713778232482,-596.73090927,0.00020201,2]
[323178955,1713778232491,-300.0,0.00020201,2]
[323178956,1713778232502,-154.84515485,0.00020201,2]
[323178957,1713778232510,-420.59807116,0.00020201,2]
[323179032,1713778238437,-128.8845129,0.00020201,2]
[323179034,1713778238446,-1169.43531831,0.00020247,2]
[323179036,1713778238455,-300.0,0.00020263,2]
[323179038,1713778238465,-300.0,0.00020263,2]
[323179040,1713778238474,-154.95956213,0.00020264,2]
[323179042,1713778238483,-474.46930599,0.00020264,2]
[323179044,1713778238492,-468.17882458,0.00020264,2]
[323179046,1713778238501,-154.94338684,0.00020264,2]
[323179048,1713778238510,-155.07727467,0.00020264,2]
[323179049,1713778238519,-155.01480943,0.00020264,2]
[323179050,1713778238528,-811.11921702,0.00020264,2]
[323179051,1713778238537,-279.07533618,0.00020264,2]
[323179053,1713778238547,-155.00521679,0.00020264,2]
[323179055,1713778238556,-564.20205004,0.00020264,2]
[323179056,1713778238566,-2098.29373442,0.00020264,2]
[323179057,1713778238576,-155.1123261,0.00020264,2]
[323179059,1713778238586,-471.01722591,0.00020264,2]
[323179060,1713778238595,-155.03341732,0.00020264,2]
[323179061,1713778238604,-155.00501604,0.00020264,2]
[323179062,1713778238613,-173.17816582,0.000203,2]
[323179063,1713778238624,-189.15723965,0.00020705,2]
[323179065,1713778238637,-354.73903456,0.00020706,2]
[323179067,1713778238646,-154.84515485,0.00020706,2]
[323179068,1713778238656,-308.43832005,0.00020707,2]
[323179069,1713778238665,-925.24178557,0.00020708,2]
[323179070,1713778238675,-419.39507495,0.00021755,2]
[323179071,1713778238685,-325.53991057,0.00021756,2]
[323179072,1713778238694,-325.53991055,0.00021771,2]
[323179073,1713778238703,-325.53991055,0.00021787,2]
[323179074,1713778238714,-474.41395909,0.00021798,2]
[323179075,1713778238724,-520.96921547,0.00021798,2]
[323179076,1713778238735,-1554.75169183,0.00021798,2]
[323179077,1713778238745,-175.49762761,0.00021798,2]
[323179078,1713778238754,-203.63718011,0.00021798,2]
[323179079,1713778238764,-193.42147421,0.00021798,2]
[323179080,1713778238773,-169.82027797,0.00021798,2]
[323179081,1713778238782,-207.68633607,0.00021798,2]
[323179082,1713778238791,-265.48146315,0.00021799,7]
[323179083,1713778238803,-138328.82152102,0.000218,2]
[323179084,1713778238813,-325.53991055,0.00021802,2]
[323179085,1713778238823,-325.53991055,0.00021817,2]
[323179086,1713778238832,-198.47903986,0.00021856,2]
[323179087,1713778238841,-3354.85746258,0.00021915,2]
[323179088,1713778238852,-500.0,0.00021917,2]
[323179089,1713778238861,-500.0,0.00021917,2]
[323179090,1713778238871,-599.76,0.00021917,2]
[323179091,1713778238880,-500.0,0.00021917,2]
[323179092,1713778238890,-505.15359985,0.00021917,2]
[323179093,1713778238899,-500.0,0.00021917,2]
[323179094,1713778238908,-500.0,0.00021917,2]
[323179095,1713778238917,-581.24,0.00021917,2]
[323179096,1713778238927,-178.20100148,0.00021917,2]
[323179097,1713778238935,-500.0,0.00021917,2]
[323179098,1713778238944,-500.0,0.00021917,2]
[323179099,1713778238954,-504.82378182,0.00021917,2]
[323179100,1713778238963,-622.76421091,0.00021917,2]
[323179101,1713778238971,-500.0,0.00021917,2]
[323179102,1713778238981,-500.0,0.00021917,2]
[323179103,1713778238989,-500.0,0.00021917,2]
[323179104,1713778238998,-500.0,0.00021917,2]
[323179105,1713778239008,-554.96398746,0.00021917,2]
[323179106,1713778239017,-500.0,0.00021917,2]
[323179107,1713778239167,-518.32428352,0.00021917,2]
[323179108,1713778239177,-508.12802659,0.00021917,2]
[323179109,1713778239187,-519.3781021,0.00021917,2]
[323179110,1713778239197,-500.0,0.00021917,2]
[323179111,1713778239206,-588.17450781,0.00021917,2]
[323179112,1713778239215,-500.0,0.00021917,2]
[323179113,1713778239224,-500.0,0.00021917,2]
[323179114,1713778239233,-500.0,0.00021917,2]
[323179115,1713778239242,-126.67693178,0.00021917,2]
[323179116,1713778239374,-373.32306822,0.00021917,2]
[323179117,1713778239383,-344.67693178,0.00021917,2]
[323179120,1713778241663,-1620.16401568,0.00020705,2]
[323179121,1713778241675,-155.32306822,0.00021917,2]
[323179122,1713778241687,-500.0,0.00021917,2]
[323179123,1713778241699,-500.0,0.00021917,2]
[323179124,1713778241710,-500.0,0.00021917,2]
[323179125,1713778241723,-1023.97,0.00021917,2]
[323179126,1713778241736,-500.0,0.00021917,2]
[323179127,1713778241745,-500.0,0.00021917,2]
[323179128,1713778241755,-1062.28,0.00021917,2]
[323179129,1713778241766,-500.0,0.00021917,2]
[323179130,1713778241778,-500.0,0.00021917,2]
[323179131,1713778241789,-627.78,0.00021917,2]
[323179132,1713778241800,-1371.16,0.00021917,2]
[323179133,1713778241811,-500.0,0.00021917,2]
[323179134,1713778241822,-500.98,0.00021917,2]
[323179135,1713778241834,-500.0,0.00021917,2]
[323179136,1713778241845,-500.0,0.00021917,2]
[323179137,1713778241857,-500.0,0.00021917,2]
[323179138,1713778241868,-500.0,0.00021917,2]
[323179139,1713778241880,-500.0,0.00021917,2]
[323179140,1713778241890,-500.0,0.00021917,2]
[323179141,1713778241900,-500.0,0.00021917,2]
[323179142,1713778241913,-500.0,0.00021917,2]
[323179143,1713778241924,-500.0,0.00021917,2]
[323179144,1713778241935,-500.0,0.00021917,2]
[323179145,1713778241946,-762.25,0.00021917,2]
[323179146,1713778241961,-1373.94,0.00021917,2]
[323179147,1713778241971,-500.0,0.00021917,2]
[323179148,1713778241981,-500.0,0.00021917,2]
[323179149,1713778241993,-500.0,0.00021917,2]
[323179150,1713778242004,-500.0,0.00021917,2]
[323179151,1713778242016,-500.0,0.00021917,2]
[323179152,1713778242027,-500.0,0.00021917,2]
[323179153,1713778242041,-500.0,0.00021917,2]
[323179154,1713778242052,-500.0,0.00021917,2]
[323179155,1713778242064,-500.0,0.00021917,2]
[323179156,1713778242076,-500.0,0.00021917,2]
[323179157,1713778242088,-500.0,0.00021917,2]
[323179158,1713778242100,-509.44398326,0.00021917,2]
[323179159,1713778242111,-500.0,0.00021917,2]
[323179160,1713778242125,-500.0,0.00021917,2]
[323179161,1713778242135,-500.0,0.00021917,2]
[323179162,1713778242145,-500.0,0.00021917,2]
[323179163,1713778242155,-500.0,0.00021917,2]
[323179164,1713778242165,-500.0,0.00021917,2]
[323179165,1713778242176,-598.35,0.00021917,2]
[323179166,1713778242187,-500.0,0.00021917,2]